bitfinex/quotes_SOLUSD_20260221
["timestamp","ask_amount","ask_price","bid_price","bid_amount"]
[1771713228990,12.15998561,85.625,85.601,0.49323336]
[1771713230409,0.48107354,85.624,85.601,0.49323336]
[1771713230608,29.19521058,85.631,85.601,0.49323336]
[1771713230801,11.67692289,85.639,85.59,0.2]
[1771713230802,11.67692289,85.639,85.621,0.49323336]
[1771713237716,11.67634352,85.644,85.621,0.49323336]
[1771713238309,0.48107354,85.648,85.621,0.49323336]
[1771713242425,0.48107354,85.646,85.621,0.49323336]
[1771713244327,0.48107354,85.644,85.621,0.49323336]
[1771713246034,12.15745106,85.643,85.621,0.49323336]
[1771713246833,0.48107354,85.647,85.623,0.49323336]
[1771713252424,0.48107354,85.647,85.625,0.48471705]
[1771713262348,0.48107354,85.647,85.627,0.48471705]
[1771713264126,0.48107354,85.647,85.62,2.38239239]
[1771713265846,0.48107354,85.647,85.621,11.67937772]
[1771713266251,0.48107354,85.647,85.622,0.48471705]
[1771713267446,11.65664729,85.649,85.623,0.48471705]
[1771713269547,0.46248417,85.648,85.623,0.48471705]
[1771713275455,29.18229617,85.669,85.623,0.48471705]
[1771713275456,0.46248417,85.646,85.623,0.48471705]
[1771713283533,0.46248417,85.646,85.625,0.48533827]
[1771713291767,0.46248417,85.646,85.626,11.67869572]
[1771713291969,0.45666518,85.651,85.627,0.48533827]
[1771713293451,0.45666518,85.651,85.631,0.48533827]
[1771713297881,0.45666518,85.649,85.631,0.48533827]
[1771713299269,0.45666518,85.649,85.622,0.48533827]
[1771713302978,0.45666518,85.647,85.622,0.48533827]
[1771713312090,0.49903569,85.645,85.622,0.48533827]
[1771713312900,0.49903569,85.645,85.608,29.20254255]
[1771713312901,0.49903569,85.645,85.624,0.50009121]
[1771713314280,0.49903569,85.643,85.624,0.50009121]
[1771713315679,0.49903569,85.641,85.624,0.50009121]
[1771713325913,11.67678654,85.64,85.624,0.50009121]
[1771713326080,12.17582223,85.64,85.624,0.50009121]
[1771713329201,0.49903569,85.651,85.631,0.50009121]
[1771713329696,40.85491834,85.669,85.641,0.50009121]
[1771713330089,11.67283381,85.669,85.641,0.50009121]
[1771713331803,0.473303,85.666,85.641,0.50009121]
[1771713334919,0.47388109,85.664,85.641,0.50009121]
[1771713337906,0.45798416,85.676,85.651,0.48317101]
[1771713341390,0.45798416,85.676,85.652,11.6751506]
[1771713341606,0.45798416,85.676,85.653,0.48317101]
[1771713343721,0.45798416,85.681,85.661,0.48317101]
[1771713346507,11.6713352,85.68,85.661,0.48317101]
[1771713349015,11.6713352,85.68,85.67,2.38216216]
[1771713349316,0.45798416,85.681,85.67,2.38216216]
[1771713350313,11.6713352,85.68,85.67,2.38216216]
[1771713350500,0.45798416,85.693,85.672,0.48317101]
[1771713351522,0.45798416,85.71,85.671,0.48317101]
[1771713352714,0.45798416,85.705,85.671,0.48317101]
[1771713355015,11.66806683,85.704,85.671,0.48317101]
[1771713355320,0.45798416,85.703,85.671,0.48317101]
[1771713360324,12.12632328,85.702,85.681,0.48317101]
[1771713360617,0.45798416,85.701,85.681,0.48317101]
[1771713365523,0.55798416,85.72,85.691,0.45798272]
[1771713366309,0.45798416,85.718,85.691,0.45798272]
[1771713367606,0.1,85.72,85.691,0.45798272]
[1771713367607,0.45798416,85.716,85.691,0.45798272]
[1771713374032,0.45798416,85.716,85.7,2.37814445]
[1771713374836,0.45798416,85.716,85.701,0.46624136]
[1771713377528,0.45798416,85.716,85.71,2.37814445]
[1771713377725,0.57674636,85.72,85.71,2.37814445]
[1771713379144,11.66602503,85.719,85.71,2.37814445]
[1771713380239,11.6653369,85.725,85.711,0.46759994]
[1771713380439,12.24132552,85.73,85.711,0.46759994]
[1771713380738,0.1,85.73,85.72,2.37814445]
[1771713380949,0.47674636,85.738,85.721,0.46785834]
[1771713381746,0.47674636,85.736,85.711,0.4913885]
[1771713384632,0.47674636,85.734,85.711,0.4913885]
[1771713386629,0.47674636,85.732,85.711,0.4913885]
[1771713390653,0.47674636,85.73,85.711,0.4913885]
[1771713405570,11.66466423,85.729,85.711,0.4913885]
[1771713405770,12.16697395,85.729,85.711,0.4913885]
[1771713405973,0.50230972,85.728,85.711,0.4913885]
[1771713417671,11.66493636,85.727,85.711,0.4913885]
[1771713417873,0.50230972,85.726,85.711,0.4913885]
[1771713422677,12.16751823,85.725,85.711,0.4913885]
[1771713423882,0.1,85.75,85.675,0.50052954]
[1771713423883,0.50230972,85.724,85.675,0.50052954]
[1771713424089,0.50230972,85.724,85.684,0.50052954]
[1771713424471,0.50230972,85.724,85.651,3.69383402]
[1771713424472,0.50230972,85.699,85.662,11.67377066]
[1771713424775,0.50230972,85.699,85.663,0.50052954]
[1771713425491,0.50230972,85.697,85.665,0.50052954]
[1771713426765,0.50230972,85.695,85.665,0.50052954]
[1771713427880,11.66942843,85.694,85.665,0.50052954]
[1771713428089,2.3802852,85.68,85.642,0.50895844]
[1771713428282,0.52047959,85.679,85.642,0.50895844]
[1771713431077,11.67160764,85.678,85.643,11.67637752]
[1771713431272,0.53029737,85.677,85.644,0.52115607]
[1771713431476,0.53029737,85.677,85.643,11.67637752]
[1771713431477,0.53029737,85.677,85.651,0.52115607]
[1771713432798,0.53029737,85.675,85.651,0.52115607]
[1771713434693,11.67215257,85.674,85.621,12.20053379]
[1771713434895,0.53029737,85.669,85.641,0.52115607]
[1771713436891,0.53029737,85.667,85.641,0.52115607]
[1771713439775,0.53029737,85.665,85.641,0.52115607]
[1771713445106,0.53029737,85.688,85.651,0.52115607]
[1771713449308,0.53029737,85.686,85.653,0.52115607]
[1771713451102,0.53029737,85.686,85.64,2.3802852]
[1771713451299,0.53029737,85.686,85.644,0.52115607]
[1771713454714,0.53029737,85.679,85.644,0.52115607]
[1771713456191,0.53029737,85.677,85.639,0.52115607]
[1771713458609,0.51681192,85.675,85.639,0.52115607]
[1771713460621,0.51681192,85.673,85.639,0.52115607]
[1771713461904,0.51681192,85.671,85.639,0.52115607]
[1771713462099,0.51681192,85.671,85.626,0.49718215]
[1771713462304,0.51681192,85.669,85.626,0.49718215]
[1771713462811,0.51681192,85.667,85.626,0.49718215]
[1771713463016,0.51681192,85.659,85.626,0.49718215]
[1771713463214,0.51681192,85.649,85.62,0.2]
[1771713465520,0.51681192,85.647,85.62,0.2]
[1771713466021,0.51681192,85.639,85.62,0.2]
[1771713467300,0.51681192,85.637,85.62,0.2]
[1771713469022,0.51681192,85.637,85.603,0.49718215]
[1771713469213,0.51681192,85.629,85.598,0.49718215]
[1771713469813,0.51681192,85.627,85.598,0.49718215]
[1771713473130,0.51681192,85.625,85.598,0.49718215]
[1771713473429,0.51681192,85.625,85.58,2.3802852]
[1771713473430,0.51681192,85.625,85.594,0.49718215]
[1771713474506,0.51681192,85.625,85.59,0.49718215]
[1771713476029,0.51681192,85.623,85.59,0.49718215]
[1771713480036,11.67924131,85.622,85.59,0.49718215]
[1771713480234,0.51681192,85.621,85.59,0.49718215]
[1771713480434,0.51681192,85.621,85.577,11.6853614]
[1771713480738,0.51681192,85.609,85.578,0.49718215]
[1771713480935,0.51681192,85.615,85.582,0.49718215]
[1771713481232,0.51681192,85.615,85.58,2.3802852]
[1771713481418,2.3802852,85.6,85.55,0.2]
[1771713481609,0.51681192,85.599,85.55,2.5802852]
[1771713482017,2.3802852,85.59,85.55,0.2]
[1771713482239,0.51681192,85.589,85.55,2.5802852]
[1771713482937,0.51681192,85.589,85.55,0.2]
[1771713483137,0.51681192,85.589,85.551,0.49718215]
[1771713483513,2.3802852,85.58,85.551,0.49718215]
[1771713483834,0.51681192,85.569,85.541,0.49718215]
[1771713484134,0.51681192,85.569,85.536,0.49718215]
[1771713485441,0.51681192,85.563,85.531,0.49718215]
[1771713486531,0.51681192,85.561,85.531,0.49718215]
[1771713486930,0.51681192,85.56,85.531,0.49718215]
[1771713489637,0.52338139,85.573,85.541,0.52490988]
[1771713489823,0.52338139,85.571,85.541,0.52490988]
[1771713490423,11.68606553,85.572,85.541,0.52490988]
[1771713495147,11.6837444,85.589,85.55,2.38666609]
[1771713495344,0.51746246,85.588,85.561,0.48512302]
[1771713496528,0.51746246,85.586,85.561,0.48512302]
[1771713497655,0.51746246,85.613,85.571,0.48512302]
[1771713499236,0.51746246,85.611,85.573,0.48512302]
[1771713501354,0.51746246,85.609,85.573,0.48512302]
[1771713502966,0.51746246,85.607,85.573,0.48512302]
[1771713505256,0.51746246,85.605,85.573,0.48512302]
[1771713507967,0.51746246,85.603,85.573,0.48512302]
[1771713509561,0.51746246,85.601,85.581,0.48512302]
[1771713515064,0.51746246,85.599,85.581,0.48512302]
[1771713521369,0.48522415,85.597,85.581,0.48512302]
[1771713544576,11.68278891,85.596,85.581,0.48512302]
[1771713545366,12.16801306,85.596,85.581,0.48512302]
[1771713546388,0.48522415,85.596,85.581,0.48512302]
[1771713554785,0.48522415,85.596,85.561,0.52400753]
[1771713554786,0.53722403,85.595,85.561,0.52400753]
[1771713554986,0.53722403,85.595,85.58,2.38427446]
[1771713555286,0.53722403,85.594,85.58,2.38427446]
[1771713556100,0.53722403,85.605,85.581,0.52400753]
[1771713556299,0.53722403,85.616,85.591,0.52400753]
[1771713557090,0.53722403,85.614,85.569,0.52400753]
[1771713557288,0.53722403,85.614,85.571,0.52400753]
[1771713557691,0.53722403,85.614,85.58,2.38427446]
[1771713558917,40.88068678,85.615,85.58,2.38427446]
[1771713558918,0.53722403,85.612,85.58,2.90828199]
[1771713559310,0.53722403,85.612,85.581,0.52400753]
[1771713562510,0.53722403,85.61,85.581,0.52400753]
[1771713573426,11.68101484,85.609,85.581,0.52400753]
[1771713573614,0.53722403,85.608,85.581,0.52400753]
[1771713575510,0.53722403,85.608,85.551,29.22233521]
[1771713575511,0.53722403,85.606,85.576,0.52400753]
[1771713577518,0.53722403,85.604,85.576,0.52400753]
[1771713577911,0.53722403,85.604,85.581,0.5087584]
[1771713584441,0.53323114,85.602,85.581,0.5087584]
[1771713586543,0.53323114,85.6,85.57,2.38427446]
[1771713586738,0.53323114,85.6,85.571,0.5087584]
[1771713589058,11.68237946,85.599,85.571,0.5087584]
[1771713589240,0.53323114,85.598,85.571,0.5087584]
[1771713593856,0.53323114,85.596,85.571,0.5087584]
[1771713595453,11.6829254,85.595,85.571,0.5087584]
[1771713595650,0.53323114,85.594,85.571,0.5087584]
[1771713596955,0.53323114,85.592,85.566,0.5087584]
[1771713597158,0.53323114,85.592,85.55,2.38427446]
[1771713597452,0.53323114,85.592,85.55,2.89303286]
[1771713598940,0.53323114,85.589,85.55,2.38427446]
[1771713599140,0.53323114,85.587,85.544,11.68985297]
[1771713599643,0.53323114,85.587,85.545,0.5087584]
[1771713600233,0.53323114,85.579,85.54,2.38427446]
[1771713600555,0.53323114,85.569,85.531,0.5087584]
[1771713600742,0.53323114,85.569,85.54,2.38427446]
[1771713600944,0.53323114,85.569,85.541,0.5087584]
[1771713601145,0.53323114,85.567,85.541,0.5087584]
[1771713601754,0.53323114,85.567,85.551,0.5087584]
[1771713601961,0.53323114,85.573,85.551,0.5087584]
[1771713603861,11.68278891,85.596,85.561,0.5087584]
[1771713604054,0.53323114,85.619,85.581,0.5087584]
[1771713604757,0.53323114,85.617,85.573,0.5087584]
[1771713604965,0.53323114,85.609,85.573,0.5087584]
[1771713605153,0.53323114,85.609,85.569,0.5087584]
[1771713605546,0.53323114,85.609,85.57,2.38427446]
[1771713605759,0.53323114,85.609,85.571,0.5087584]
[1771713606271,0.53323114,85.607,85.571,0.5087584]
[1771713608267,0.5047882,85.605,85.571,0.5087584]
[1771713608455,0.5047882,85.605,85.581,0.54180317]
[1771713609158,11.68072541,85.612,85.594,0.54180317]
[1771713611166,0.5047882,85.624,85.601,0.54180317]
[1771713612264,11.67815018,85.63,85.611,0.52131528]
[1771713612472,11.6774135,85.636,85.611,0.52131528]
[1771713612653,11.67657837,85.642,85.621,0.52131528]
[1771713612854,11.67610485,85.645,85.63,2.90433677]
[1771713613366,0.50276164,85.651,85.631,0.52131528]
[1771713615666,12.17768887,85.654,85.631,0.52131528]
[1771713615877,0.50276164,85.653,85.631,0.52131528]
[1771713617267,11.6751506,85.652,85.631,0.52131528]
[1771713617570,12.17791224,85.652,85.631,0.52131528]
[1771713619073,0.50276164,85.656,85.631,0.52131528]
[1771713622553,0.50276164,85.654,85.631,0.52131528]
[1771713624081,0.50276164,85.652,85.631,0.52131528]
[1771713625669,0.50276164,85.652,85.624,0.52131528]
[1771713626174,3.69383402,85.677,85.61,2.38302149]
[1771713626175,0.50276164,85.65,85.61,2.38302149]
[1771713626365,0.50276164,85.649,85.61,2.38302149]
[1771713627464,0.50276164,85.647,85.61,14.06387968]
[1771713628272,0.50276164,85.647,85.611,0.22412208]
[1771713628772,0.50276164,85.647,85.61,2.38302149]
[1771713628974,0.50276164,85.647,85.611,0.22458681]
[1771713630970,11.67596852,85.646,85.611,0.22458681]
[1771713631168,0.50276164,85.645,85.611,0.22458681]
[1771713633279,0.50276164,85.643,85.611,0.22458681]
[1771713635482,0.50276164,85.641,85.611,0.22458681]
[1771713638078,11.67678654,85.64,85.611,0.22458681]
[1771713638279,0.54198222,85.639,85.611,0.22458681]
[1771713639273,0.54198222,85.637,85.611,0.22458681]
[1771713643177,0.54198222,85.635,85.601,0.23095869]
[1771713644472,0.54198222,85.633,85.601,0.23095869]
[1771713645669,0.54198222,85.631,85.601,0.23095869]
[1771713647788,11.67815018,85.63,85.601,0.23095869]
[1771713647989,0.54198222,85.629,85.601,0.23095869]
[1771713654972,0.54198222,85.629,85.603,0.23529885]
[1771713657075,0.54198222,85.627,85.581,0.23596636]
[1771713658993,0.54198222,85.625,85.581,11.9207986]
[1771713659301,0.54198222,85.625,85.582,0.23662561]
[1771713661111,40.87543502,85.626,85.582,0.23662561]
[1771713661112,0.54198222,85.623,85.582,0.23662561]
[1771713661495,0.54198222,85.619,85.582,0.23662561]
[1771713663509,0.54198222,85.617,85.582,0.23662561]
[1771713664888,0.54198222,85.615,85.582,0.23662561]
[1771713666809,0.54198222,85.613,85.582,0.23662561]
[1771713671899,11.68060552,85.612,85.582,0.23662561]
[1771713672100,0.5538596,85.611,85.582,0.23662561]
[1771713673497,0.5538596,85.609,85.582,0.23662561]
[1771713674615,0.5538596,85.609,85.571,0.24158042]
[1771713674912,0.5538596,85.609,85.572,0.24184348]
[1771713676801,0.5538596,85.607,85.572,0.24184348]
[1771713679428,0.5538596,85.605,85.572,0.24184348]
[1771713682325,11.68169711,85.604,85.572,0.24184348]
[1771713682524,0.5538596,85.603,85.572,0.24184348]
[1771713684828,0.5538596,85.601,85.572,0.24184348]
[1771713686325,0.5538596,85.601,85.563,0.24453681]
[1771713686826,0.5538596,85.599,85.563,0.24453681]
[1771713688443,0.5538596,85.597,85.563,0.24453681]
[1771713690836,0.5538596,85.595,85.563,0.24453681]
[1771713691340,0.5538596,85.595,85.561,0.24566077]
[1771713691641,0.5538596,85.589,85.556,0.24566077]
[1771713692617,0.5538596,85.587,85.556,0.24566077]
[1771713696839,0.5538596,85.585,85.556,0.24566077]
[1771713697133,0.5538596,85.579,85.546,0.24692763]
[1771713698121,0.5307579,85.569,85.546,0.24692763]
[1771713700941,2.38446203,85.57,85.546,0.24692763]
[1771713700942,0.5307579,85.567,85.546,0.24692763]
[1771713701342,0.5307579,85.567,85.533,11.69133611]
[1771713702723,0.55778427,85.559,85.53,0.2]
[1771713704822,5.36086188,85.61,85.53,0.2]
[1771713704823,29.21315796,85.578,85.532,0.55585783]
[1771713705040,11.68415395,85.586,85.541,0.55585783]
[1771713706046,11.68415395,85.586,85.531,11.69166734]
[1771713706047,11.68237946,85.599,85.552,0.55585783]
[1771713706721,29.20456637,85.604,85.563,0.55585783]
[1771713706921,0.5307579,85.603,85.563,0.55585783]
[1771713707333,0.5307579,85.603,85.57,2.38446203]
[1771713707529,0.5307579,85.603,85.571,0.55585783]
[1771713710355,11.68197004,85.602,85.571,0.55585783]
[1771713711647,11.68197004,85.602,85.573,0.55585783]
[1771713712553,11.68197004,85.602,85.574,11.68579241]
[1771713712762,11.68197004,85.602,85.575,0.55585783]
[1771713713143,0.5307579,85.61,85.58,2.38446203]
[1771713713348,0.5307579,85.61,85.581,0.55585783]
[1771713714059,0.5307579,85.615,85.581,0.55585783]
[1771713715863,0.5307579,85.613,85.583,0.55585783]
[1771713721241,0.5307579,85.618,85.585,0.55585783]
[1771713723462,0.5307579,85.618,85.587,0.55585783]
[1771713723767,0.5307579,85.623,85.587,0.55585783]
[1771713724446,0.5307579,85.623,85.579,29.21269987]
[1771713724447,0.5307579,85.618,85.589,0.55585783]
[1771713728185,0.5307579,85.618,85.591,0.52848464]
[1771713730156,0.5307579,85.618,85.593,0.52848464]
[1771713730357,0.54621051,85.616,85.593,0.52848464]
[1771713733884,0.54621051,85.616,85.594,11.68306189]
[1771713734087,0.54621051,85.616,85.595,0.56051633]
[1771713739693,29.18975084,85.647,85.596,0.56051633]
[1771713740664,11.67596852,85.646,85.596,0.56051633]
[1771713740865,11.67596852,85.646,85.598,0.56051633]
[1771713741666,0.52987555,85.645,85.598,0.56051633]
[1771713741866,0.52987555,85.645,85.602,0.56051633]
[1771713743885,0.52987555,85.643,85.604,0.56051633]
[1771713745877,0.52987555,85.643,85.614,0.56051633]
[1771713748483,0.52987555,85.643,85.616,0.56051633]
[1771713750692,0.52987555,85.643,85.618,0.56051633]
[1771713753273,0.52987555,85.643,85.619,11.67965054]
[1771713753474,0.52987555,85.643,85.62,0.56051633]
[1771713755199,0.52987555,85.641,85.62,0.56051633]
[1771713755892,0.52987555,85.641,85.622,0.56051633]
[1771713757273,0.52987555,85.641,85.624,0.56051633]
[1771713759195,0.5266576,85.652,85.624,0.56051633]
[1771713763300,0.5266576,85.65,85.624,0.56051633]
[1771713763599,0.5266576,85.65,85.61,2.38382277]
[1771713763600,0.5266576,85.65,85.625,12.2491185]
[1771713764984,0.5266576,85.65,85.626,0.57028639]
[1771713771191,0.5266576,85.65,85.628,0.57028639]
[1771713773203,0.5266576,85.65,85.629,11.67828656]
[1771713775307,0.5266576,85.65,85.629,0.57028639]
[1771713778431,0.5266576,85.65,85.613,0.57028639]
[1771713778715,0.5266576,85.629,85.571,11.6862021]
[1771713778891,0.5266576,85.619,85.571,11.6862021]
[1771713779516,0.5266576,85.619,85.579,29.21259236]
[1771713779817,0.5266576,85.619,85.561,11.68756793]
[1771713779818,0.5266576,85.618,85.561,11.68756793]
[1771713780611,0.5266576,85.618,85.567,0.24707926]
[1771713780815,0.5266576,85.618,85.577,0.24792863]
[1771713784603,0.5266576,85.618,85.579,0.25039424]
[1771713784923,3.69383402,85.646,85.578,11.6852462]
[1771713784924,0.5266576,85.609,85.578,11.6852462]
[1771713785132,0.5266576,85.609,85.578,11.93643576]
[1771713785309,0.5266576,85.609,85.579,0.25118956]
[1771713785701,0.5266576,85.609,85.574,0.25198164]
[1771713785905,0.5266576,85.579,85.51,0.2]
[1771713786206,2.38382277,85.54,85.513,0.58479743]
[1771713786402,2.38382277,85.54,85.51,0.2]
[1771713786599,0.28432314,85.549,85.511,0.58479743]
[1771713786800,0.5266576,85.529,85.51,1e-08]
[1771713787000,2.91048037,85.53,85.51,1e-08]
[1771713787221,12.35666144,85.559,85.513,3.69383402]
[1771713787428,0.5266576,85.549,85.51,11.69450177]
[1771713787627,0.5266576,85.539,85.51,1e-08]
[1771713787804,0.58081755,85.519,85.49,0.2]
[1771713788130,0.58081755,85.519,85.491,11.69713771]
[1771713788300,0.58081755,85.519,85.49,0.2]
[1771713788506,0.58081755,85.509,85.47,11.89988769]
[1771713788829,0.58081755,85.489,85.47,0.2]
[1771713789119,11.69481218,85.508,85.454,0.53023026]
[1771713789120,0.58081755,85.479,85.454,0.53023026]
[1771713789329,0.58081755,85.469,85.433,0.53023026]
[1771713789904,0.58081755,85.449,85.417,0.53023026]
[1771713790509,2.38382277,85.47,85.422,0.28432314]
[1771713790709,2.38382277,85.47,85.427,0.53023026]
[1771713790912,11.69741136,85.489,85.432,0.14216157]
[1771713791111,2.38382277,85.5,85.447,0.53023026]
[1771713791520,2.38382277,85.51,85.457,0.53981828]
[1771713791924,2.38382277,85.52,85.461,0.53981828]
[1771713792125,2.38382277,85.52,85.467,0.53981828]
[1771713792517,2.38382277,85.51,85.467,0.53981828]
[1771713792719,2.38382277,85.51,85.469,0.53981828]
[1771713793030,0.20699944,85.513,85.469,0.53981828]
[1771713793534,0.20699944,85.513,85.471,0.53981828]
[1771713793843,0.21128731,85.528,85.477,0.53981828]
[1771713795024,0.21128731,85.528,85.479,0.53981828]
[1771713795231,0.21128731,85.528,85.478,11.69891668]
[1771713795232,0.21128731,85.528,85.481,0.53981828]
[1771713795421,0.21128731,85.528,85.49,2.38973221]
[1771713795626,0.21128731,85.528,85.491,0.53981828]
[1771713796432,0.21403125,85.538,85.501,0.53981828]
[1771713796732,0.21403125,85.552,85.511,0.53981828]
[1771713797412,0.21538016,85.55,85.511,0.53981828]
[1771713798029,0.21672258,85.557,85.521,0.53981828]
[1771713799208,0.21672258,85.557,85.53,2.38973221]
[1771713799408,11.68802712,85.558,85.531,0.53981828]
[1771713799611,0.21804161,85.558,85.531,0.53981828]
[1771713800514,0.2193545,85.564,85.531,0.53981828]
[1771713800913,11.68729474,85.563,85.531,0.53981828]
[1771713801115,11.90793708,85.563,85.531,0.53981828]
[1771713802530,0.22192659,85.562,85.531,0.53981828]
[1771713802720,0.22192659,85.562,85.53,2.38973221]
[1771713802721,0.22192659,85.569,85.535,0.53981828]
[1771713803113,0.22192659,85.569,85.541,0.53981828]
[1771713804036,11.6837444,85.589,85.541,0.53981828]
[1771713804037,0.22442607,85.588,85.541,0.53981828]
[1771713804416,0.22442607,85.594,85.561,0.53981828]
[1771713804816,0.22442607,85.592,85.561,0.53981828]
[1771713806020,0.22686937,85.588,85.548,0.53981828]
[1771713806329,0.22686937,85.588,85.551,0.53981828]
[1771713806630,0.22686937,85.588,85.495,5.36086188]
[1771713806631,0.22686937,85.579,85.531,0.53981828]
[1771713806835,0.22808057,85.577,85.531,0.53981828]
[1771713807417,0.22808057,85.577,85.531,12.23146593]
[1771713807744,0.22808057,85.577,85.532,0.53981828]
[1771713808856,11.6855193,85.576,85.532,0.53981828]
[1771713809141,0.23045571,85.575,85.532,0.53981828]
[1771713809438,0.23045571,85.569,85.532,0.53981828]
[1771713809820,0.23045571,85.569,85.491,3.69383402]
[1771713809821,11.96806754,85.589,85.551,0.53981828]
[1771713810025,0.23161945,85.578,85.551,0.53981828]
[1771713811035,0.23277407,85.576,85.551,0.53981828]
[1771713812008,0.23277407,85.576,85.541,0.53981828]
[1771713813346,0.23504093,85.574,85.541,0.53981828]
[1771713815239,0.23504093,85.574,85.543,0.53981828]
[1771713815427,0.23726036,85.572,85.543,0.53981828]
[1771713818925,0.24260886,85.57,85.543,0.53981828]
[1771713821546,0.24465807,85.568,85.543,0.53981828]
[1771713822325,11.93215003,85.569,85.543,0.53981828]
[1771713822531,0.24567479,85.568,85.543,0.53981828]
[1771713824348,0.24765497,85.576,85.543,0.53981828]
[1771713824549,0.24765497,85.582,85.543,0.53981828]
[1771713824734,0.24765497,85.579,85.543,0.53981828]
[1771713827653,0.25054264,85.577,85.544,0.59185092]
[1771713830048,0.25332801,85.575,85.544,0.59185092]
[1771713830633,0.25332801,85.569,85.531,0.59185092]
[1771713833636,11.68661181,85.568,85.531,0.59185092]
[1771713833835,0.25599121,85.567,85.531,0.59185092]
[1771713835754,0.28432314,85.559,85.525,0.59185092]
[1771713835959,0.25856373,85.558,85.525,0.59185092]
[1771713836758,0.28432314,85.557,85.51,2.38973221]
[1771713837058,0.6103656,85.548,85.5,2.38973221]
[1771713838878,0.6103656,85.546,85.503,0.59185092]
[1771713839570,0.6103656,85.544,85.503,0.59185092]
[1771713839753,0.6103656,85.538,85.503,0.59185092]
[1771713840267,0.6103656,85.538,85.503,0.09479778]
[1771713840640,3.69383402,85.544,85.441,58.51986003]
[1771713840641,0.6103656,85.524,85.441,58.51986003]
[1771713840840,0.6103656,85.516,85.47,2.38973221]
[1771713841040,0.6103656,85.516,85.461,11.70124384]
[1771713842145,0.6103656,85.516,85.462,0.59185092]
[1771713842462,0.6103656,85.516,85.471,0.59185092]
[1771713842639,0.28432314,85.515,85.471,0.59185092]
[1771713842845,0.6103656,85.506,85.471,0.59185092]
[1771713843257,0.6103656,85.506,85.462,0.59185092]
[1771713845879,0.6103656,85.504,85.464,0.59185092]
[1771713846547,0.6103656,85.498,85.464,0.59185092]
[1771713847269,0.6103656,85.498,85.46,2.38973221]
[1771713847460,11.69425087,85.513,85.471,0.59185092]
[1771713847764,46.73247795,85.594,85.473,0.57454749]
[1771713847765,29.2292382,85.531,85.473,0.57454749]
[1771713847964,2.38973221,85.53,85.473,0.57454749]
[1771713848383,0.28432314,85.53,85.481,0.57454749]
[1771713848862,2.67405535,85.53,85.481,0.57454749]
[1771713849547,0.60407434,85.529,85.481,0.57454749]
[1771713850371,0.60407434,85.527,85.483,0.57454749]
[1771713850575,0.60407434,85.519,85.483,0.57454749]
[1771713850774,0.60407434,85.525,85.483,0.57454749]
[1771713851081,0.28432314,85.521,85.483,0.57454749]
[1771713851280,11.69207744,85.528,85.483,0.57454749]
[1771713851449,11.69207744,85.528,85.482,40.94429235]
[1771713851450,11.69207744,85.528,85.491,0.5782359]
[1771713852463,0.5865667,85.543,85.501,0.5782359]
[1771713852673,0.5865667,85.553,85.501,0.5782359]
[1771713853172,0.5865667,85.549,85.501,0.5782359]
[1771713855471,2.38887047,85.55,85.502,0.5782359]
[1771713855472,0.5865667,85.547,85.502,0.5782359]
[1771713857478,0.5865667,85.545,85.504,0.5782359]
[1771713859688,0.5865667,85.538,85.504,0.5782359]
[1771713861590,0.5865667,85.538,85.47,58.49971217]
[1771713861591,0.5865667,85.518,85.481,0.5782359]
[1771713863488,0.5865667,85.508,85.47,0.5782359]
[1771713863671,11.69494895,85.507,85.47,0.5782359]
[1771713863992,0.5865667,85.506,85.47,0.5782359]
[1771713865096,0.5865667,85.506,85.471,0.5782359]
[1771713865687,11.69494895,85.507,85.472,0.5782359]
[1771713865889,11.05635885,85.507,85.481,0.5782359]
[1771713866190,9.93495368,85.507,85.48,2.38887047]
[1771713867095,0.63871028,85.509,85.46,2.38887047]
[1771713870803,0.63871028,85.509,85.425,14.25702304]
[1771713870804,0.63871028,85.514,85.48,2.38887047]
[1771713871004,0.63871028,85.521,85.48,2.38887047]
[1771713871188,11.69194074,85.529,85.49,2.38887047]
[1771713871383,12.33065102,85.529,85.49,2.38887047]
[1771713872487,12.33065102,85.529,85.491,11.69713771]
[1771713873004,12.33065102,85.529,85.5,2.38887047]
[1771713873005,11.69194074,85.529,85.5,2.38887047]
[1771713873207,11.69119226,85.535,85.5,2.38887047]
[1771713873588,0.63871028,85.548,85.5,2.38887047]
[1771713873805,0.63871028,85.548,85.51,2.38887047]
[1771713874102,0.63871028,85.546,85.51,2.38887047]
[1771713874492,0.63871028,85.546,85.464,3.69383402]
[1771713874493,0.63871028,85.509,85.447,29.25790255]
[1771713874691,0.63871028,85.499,85.448,11.70302406]
[1771713874881,3.69383402,85.515,85.441,11.70388643]
[1771713874882,0.63871028,85.491,85.441,11.70388643]
[1771713875085,0.63871028,85.489,85.441,11.70388643]
[1771713875286,0.63871028,85.489,85.44,2.38887047]
[1771713875890,2.38887047,85.51,85.45,2.38887047]
[1771713876095,0.63871028,85.537,85.49,2.38887047]
[1771713876586,11.69098391,85.536,85.491,11.69713771]
[1771713877498,0.63871028,85.535,85.491,11.69713771]
[1771713877686,0.63871028,85.535,85.5,2.38887047]
[1771713877883,58.43785393,85.561,85.491,11.69713771]
[1771713877884,0.63871028,85.569,85.51,5.97068334]
[1771713878107,29.21994095,85.559,85.51,5.97068334]